fUSD/lending_fUSD_20250213
["ID","MTS","AMOUNT","RATE_DAILY","PERIOD"]
[352989612,1739476248760,-2136.79,0.00013698,2]
[352989615,1739476248772,-500.0,0.00013698,2]
[352989617,1739476248783,-846.79,0.00013698,2]
[352989619,1739476248794,-500.0,0.00013698,2]
[352989621,1739476248805,-834.88,0.00013698,2]
[352989623,1739476248815,-604.38,0.00013698,2]
[352989625,1739476248826,-500.0,0.00013698,2]
[352989627,1739476248838,-500.0,0.00013698,2]
[352989629,1739476248849,-642.38,0.00013698,2]
[352989631,1739476248859,-1190.57,0.00013698,2]
[352989633,1739476248869,-4697.28,0.00013698,2]
[352989635,1739476248880,-500.0,0.00013698,2]
[352989636,1739476248893,-1675.91,0.00013698,2]
[352989638,1739476248904,-3101.49,0.00013698,2]
[352989640,1739476248914,-500.0,0.00013698,2]
[352989642,1739476248926,-593.44,0.00013698,2]
[352989644,1739476248937,-979.25,0.00013698,2]
[352989646,1739476248947,-2064.69,0.00013698,2]
[352989649,1739476248959,-1813.83,0.00013698,2]
[352989651,1739476248970,-500.0,0.00013698,2]
[352989653,1739476248980,-500.0,0.00013698,2]
[352989655,1739476248990,-7268.44,0.00013698,2]
[352989657,1739476249001,-500.0,0.00013698,2]
[352989659,1739476249013,-1331.45,0.00013698,2]
[352989661,1739476249024,-3738.83,0.00013698,2]
[352989663,1739476249034,-500.0,0.00013698,2]
[352989665,1739476249044,-500.0,0.00013698,2]
[352989667,1739476249055,-253.2,0.00013698,2]
[352989669,1739476249064,-5249.76,0.00013698,2]
[352989671,1739476249074,-949.66,0.00013698,2]
[352989672,1739476249084,-1089.64,0.00013698,2]
[352989673,1739476249094,-500.0,0.00013698,2]
[352989674,1739476249104,-500.0,0.00013698,2]
[352989675,1739476249113,-500.0,0.00013698,2]
[352989676,1739476249123,-500.0,0.00013698,2]
[352989677,1739476249133,-500.0,0.00013698,2]
[352989678,1739476249144,-500.0,0.00013698,2]
[352989679,1739476249154,-4324.79,0.00013698,2]
[352989680,1739476249163,-880.14,0.00013698,2]
[352989681,1739476249173,-500.0,0.00013698,2]
[352989682,1739476249183,-3312.98,0.00013698,2]
[352989683,1739476249194,-2721.37,0.00013698,2]
[352989684,1739476249204,-500.0,0.00013698,2]
[352989686,1739476249215,-500.0,0.00013698,2]
[352989687,1739476249224,-500.0,0.00013698,2]
[352989690,1739476249233,-500.0,0.00013698,2]
[352989692,1739476249243,-500.0,0.00013698,2]
[352989694,1739476249252,-3883.28,0.00013698,2]
[352989696,1739476249261,-500.0,0.00013698,2]
[352989698,1739476249273,-771.81,0.00013698,2]
[352989700,1739476249284,-2357.25,0.00013698,2]
[352989702,1739476249294,-500.0,0.00013698,2]
[352989704,1739476249305,-500.0,0.00013698,2]
[352989706,1739476249315,-500.0,0.00013698,2]
[352989708,1739476249324,-501.60888486,0.00013698,2]
[352989709,1739476249334,-500.0,0.00013698,2]
[352989712,1739476249345,-3563.4,0.00013698,2]
[352989713,1739476249356,-525.50378378,0.00013698,2]
[352989715,1739476249366,-500.0,0.00013698,2]
[352989718,1739476249377,-1437.45,0.00013698,2]
[352989720,1739476249388,-500.0,0.00013698,2]
[352989722,1739476249399,-500.0,0.00013698,2]
[352989724,1739476249410,-1033.93,0.00013698,2]
[352989726,1739476249420,-500.0,0.00013698,2]
[352989727,1739476249432,-626.05,0.00013698,2]
[352989729,1739476249443,-649.90535552,0.00013698,2]
[352989731,1739476249454,-1663.45,0.00013698,2]
[352989733,1739476249465,-523.3,0.00013698,2]
[352989735,1739476249476,-2181.96,0.00013698,2]
[352989737,1739476249486,-500.0,0.00013698,2]
[352989739,1739476249496,-1064.18,0.00013698,2]
[352989741,1739476249508,-500.0,0.00013698,2]
[352989743,1739476249519,-500.0,0.00013698,2]
[352989745,1739476249530,-550.27663948,0.00013698,2]
[352989747,1739476249541,-500.0,0.00013698,2]
[352989749,1739476249551,-4564.1,0.00013698,2]
[352989751,1739476249565,-500.0,0.00013698,2]
[352989753,1739476249576,-1757.83,0.00013698,2]
[352989755,1739476249587,-500.0,0.00013698,2]
[352989757,1739476249598,-500.0,0.00013698,2]
[352989759,1739476249609,-500.0,0.00013698,2]
[352989761,1739476249621,-500.0,0.00013698,2]
[352989763,1739476249633,-500.0,0.00013699,2]
[352989765,1739476249645,-200.0,0.00013699,2]
[352989767,1739476249656,-4000.0,0.00013699,2]
[352989769,1739476249668,-190.05,0.00013699,2]
[352989771,1739476249679,-1972.18,0.00013699,2]
[352989773,1739476249691,-438.84,0.00013699,2]
[352989775,1739476249704,-150.0,0.00013699,2]
[352989785,1739476249795,-150.0,0.00013699,2]
[352989787,1739476249810,-587.0,0.00013711,2]
[352989789,1739476249820,-658.4151405,0.00013712,2]
[352989791,1739476249830,-431.95362761,0.00013725,2]
[352989793,1739476249840,-500.0,0.00013734,2]
[352989795,1739476249851,-2000.0,0.00013734,2]
[352989797,1739476249860,-500.0,0.00013734,2]
[352989799,1739476249870,-200.0,0.00013734,2]
[352989801,1739476249882,-250.0,0.00013738,2]
[352989803,1739476249894,-1250.0,0.00013748,3]
[352989805,1739476249905,-150.0,0.00013753,2]
[352989807,1739476249915,-401.16969167,0.00013763,2]
[352989809,1739476249925,-200.51428415,0.00013771,2]
[352989811,1739476249935,-500.0,0.00013779,2]
[352989813,1739476249945,-500.0,0.00013779,2]
[352989815,1739476249954,-500.0,0.00013779,2]
[352989817,1739476249967,-1078.0,0.0001378,2]
[352989819,1739476249977,-1296.78,0.0001378,2]
[352989821,1739476249986,-848.53,0.0001378,2]
[352989823,1739476249996,-3007.897498,0.0001378,2]
[352989825,1739476250006,-845.83,0.0001378,2]
[352989827,1739476250015,-841.59,0.0001378,2]
[352989829,1739476250024,-500.0,0.0001378,2]
[352989831,1739476250034,-500.0,0.0001378,2]
[352989833,1739476250044,-500.0,0.0001378,2]
[352989835,1739476250056,-500.0,0.0001378,2]
[352989837,1739476250065,-500.0,0.0001378,2]
[352989839,1739476250075,-500.0,0.0001378,2]
[352989841,1739476250085,-1925.883623,0.0001378,2]
[352989843,1739476250094,-833.34,0.0001378,2]
[352989845,1739476250103,-530.92,0.0001378,2]
[352989847,1739476250113,-555.83,0.0001378,2]
[352989849,1739476250122,-1032.14,0.0001378,2]
[352989851,1739476250132,-500.0,0.0001378,2]
[352989853,1739476250142,-500.0,0.0001378,2]
[352989855,1739476250151,-500.0,0.0001378,2]
[352989857,1739476250160,-500.0,0.0001378,2]
[352989859,1739476250170,-500.0,0.0001378,2]
[352989861,1739476250178,-999.19,0.0001378,2]
[352989862,1739476250188,-500.0,0.0001378,2]
[352989864,1739476250197,-650.49,0.0001378,2]
[352989866,1739476250206,-500.0,0.0001378,2]
[352989868,1739476250215,-500.0,0.0001378,2]
[352989870,1739476250224,-500.0,0.0001378,2]
[352989871,1739476250233,-500.0,0.0001378,2]
[352989873,1739476250242,-500.0,0.0001378,2]
[352989875,1739476250251,-866.73,0.0001378,2]
[352989877,1739476250261,-500.0,0.0001378,2]
[352989879,1739476250271,-562.67,0.0001378,2]
[352989881,1739476250280,-1200.0,0.0001378,2]
[352989883,1739476250289,-500.0,0.0001378,2]
[352989884,1739476250298,-530.9,0.0001378,2]
[352989886,1739476250310,-500.0,0.0001378,2]
[352989888,1739476250319,-500.0,0.0001378,2]
[352989890,1739476250328,-500.0,0.0001378,2]
[352989892,1739476250338,-500.0,0.0001378,2]
[352989894,1739476250347,-500.0,0.0001378,2]
[352989896,1739476250357,-500.0,0.0001378,2]
[352989898,1739476250366,-500.0,0.0001378,2]
[352989900,1739476250376,-648.4,0.0001378,2]
[352989902,1739476250385,-500.0,0.0001378,2]
[352989904,1739476250394,-686.89,0.0001378,2]
[352989906,1739476250404,-500.0,0.0001378,2]
[352989908,1739476250413,-1050.45,0.0001378,2]
[352989910,1739476250423,-664.05,0.0001378,2]
[352989912,1739476250432,-500.0,0.0001378,2]
[352989913,1739476250442,-1556.77,0.0001378,2]
[352989915,1739476250451,-562.37457578,0.0001378,2]
[352989917,1739476250460,-667.62,0.0001378,2]
[352989919,1739476250470,-500.0,0.0001378,2]
[352989921,1739476250479,-500.0,0.0001378,2]
[352989923,1739476250489,-1222.58,0.0001378,2]
[352989925,1739476250499,-835.75,0.0001378,2]
[352989927,1739476250509,-500.0,0.0001378,2]
[352989929,1739476250518,-500.0,0.0001378,2]
[352989930,1739476250528,-500.0,0.0001378,2]
[352989932,1739476250537,-500.0,0.0001378,2]
[352989933,1739476250546,-500.0,0.0001378,2]
[352989935,1739476250557,-299.42826396,0.0001378,2]
[352989937,1739476250566,-873.32,0.0001378,2]
[352989938,1739476250576,-1107.84,0.0001378,2]
[352989940,1739476250585,-500.0,0.0001378,2]
[352989942,1739476250595,-912.03,0.0001378,2]
[352989944,1739476250605,-934.85,0.0001378,2]
[352989945,1739476250614,-500.0,0.0001378,2]
[352989947,1739476250623,-504.85962021,0.0001378,2]
[352989949,1739476250633,-500.0,0.0001378,2]
[352989950,1739476250642,-500.0,0.0001378,2]
[352989952,1739476250651,-2679.48,0.0001378,2]
[352989954,1739476250660,-500.0,0.0001378,2]
[352989955,1739476250669,-572.79440881,0.0001378,2]
[352989957,1739476250679,-602.38,0.0001378,2]
[352989959,1739476250688,-1171.53,0.0001378,2]
[352989960,1739476250697,-500.0,0.0001378,2]
[352989962,1739476250706,-500.0,0.0001378,2]
[352989964,1739476250715,-1201.28,0.0001378,2]
[352989965,1739476250725,-734.24,0.0001378,2]
[352989967,1739476250734,-500.0,0.0001378,2]
[352989969,1739476250745,-1012.48,0.0001378,2]
[352989971,1739476250754,-500.0,0.0001378,2]
[352989972,1739476250764,-500.0,0.0001378,2]
[352989974,1739476250773,-2613.58,0.0001378,2]
[352989976,1739476250783,-958.51,0.0001378,2]
[352989977,1739476250793,-500.0,0.0001378,2]
[352989979,1739476250803,-500.0,0.0001378,2]
[352989981,1739476250813,-2163.31,0.0001378,2]
[352989983,1739476250822,-653.07,0.0001378,2]
[352989985,1739476250832,-1290.24,0.0001378,2]
[352989986,1739476250841,-1052.9,0.0001378,2]
[352989988,1739476250851,-615.52,0.0001378,2]
[352989990,1739476250860,-500.0,0.0001378,2]
[352989992,1739476250871,-500.0,0.0001378,2]
[352989993,1739476250883,-500.0,0.0001378,2]
[352989995,1739476250893,-819.41,0.0001378,2]
[352989997,1739476250904,-1021.89,0.0001378,2]
[352989999,1739476250913,-2092.06,0.0001378,2]
[352990000,1739476250923,-502.49,0.0001378,2]
[352990002,1739476250934,-949.17,0.0001378,2]
[352990004,1739476250943,-500.0,0.0001378,2]
[352990005,1739476250952,-809.98,0.0001378,2]
[352990007,1739476250964,-1534.08,0.0001378,2]
[352990009,1739476250974,-500.0,0.0001378,2]
[352990010,1739476250984,-310.21769562,0.0001378,2]
[352990012,1739476250993,-500.0,0.0001378,2]
[352990014,1739476251003,-500.0,0.0001378,2]
[352990016,1739476251013,-2590.29,0.0001378,2]
[352990018,1739476251024,-698.98,0.0001378,2]
[352990020,1739476251034,-598.03,0.0001378,2]
[352990022,1739476251045,-674.72,0.0001378,2]
[352990023,1739476251056,-1390.36,0.0001378,2]
[352990025,1739476251065,-1440.17,0.0001378,2]
[352990027,1739476251075,-620.3,0.0001378,2]
[352990029,1739476251084,-1673.9,0.0001378,2]
[352990030,1739476251094,-368.40939751,0.0001378,2]
[352990032,1739476251103,-812.55,0.0001378,2]
[352990034,1739476251114,-781.4,0.0001378,2]
[352990036,1739476251125,-428.80384126,0.0001378,2]
[352990038,1739476251135,-540.43,0.0001378,2]
[352990039,1739476251145,-2090.23,0.0001378,2]
[352990041,1739476251156,-560.27,0.0001378,2]
[352990043,1739476251167,-500.0,0.0001378,2]
[352990045,1739476251177,-662.05,0.0001378,2]
[352990047,1739476251186,-500.0,0.0001378,2]
[352990049,1739476251197,-1780.88,0.0001378,2]
[352990050,1739476251207,-672.4,0.0001378,2]
[352990052,1739476251217,-819.56,0.0001378,2]
[352990054,1739476251228,-1282.01,0.0001378,2]
[352990056,1739476251239,-249.30688037,0.0001378,2]
[352990058,1739476251250,-500.0,0.0001378,2]
[352990060,1739476251260,-500.0,0.0001378,2]
[352990061,1739476251269,-500.0,0.0001378,2]
[352990063,1739476251279,-2456.28,0.0001378,2]
[352990065,1739476251288,-500.0,0.0001378,2]
[352990066,1739476251298,-2900.72,0.0001378,2]
[352990068,1739476251309,-500.0,0.0001378,2]
[352990070,1739476251319,-2198.45,0.0001378,2]
[352990072,1739476251328,-879.24,0.0001378,2]
[352990073,1739476251337,-500.0,0.0001378,2]
[352990075,1739476251347,-500.0,0.0001378,2]
[352990077,1739476251358,-500.0,0.0001378,2]
[352990079,1739476251369,-1858.76,0.0001378,2]
[352990081,1739476251378,-1177.0,0.0001378,2]
[352990083,1739476251387,-500.0,0.0001378,2]
[352990084,1739476251398,-1266.52,0.0001378,2]
[352990086,1739476251407,-2323.23,0.0001378,2]
[352990088,1739476251419,-599.88,0.0001378,2]
[352990090,1739476251429,-500.0,0.0001378,2]
[352990092,1739476251438,-500.0,0.0001378,2]
[352990094,1739476251448,-2010.79,0.0001378,2]
[352990095,1739476251457,-500.0,0.0001378,2]
[352990097,1739476251466,-1350.79,0.0001378,2]
[352990099,1739476251475,-2147.93,0.0001378,2]
[352990101,1739476251485,-1309.87,0.0001378,2]
[352990103,1739476251494,-1216.35,0.0001378,2]
[352990104,1739476251503,-509.4737358,0.0001378,2]
[352990106,1739476251513,-576.87,0.0001378,2]
[352990108,1739476251523,-500.0,0.0001378,2]
[352990110,1739476251532,-1183.65,0.0001378,2]
[352990112,1739476251541,-390.66678655,0.0001378,2]
[352990114,1739476251551,-930.56,0.0001378,2]
[352990115,1739476251562,-500.0,0.0001378,2]
[352990117,1739476251572,-230.08169151,0.0001378,2]
[352990119,1739476251581,-898.17,0.0001378,2]
[352990121,1739476251590,-1930.48,0.0001378,2]
[352990123,1739476251599,-500.0,0.0001378,2]
[352990125,1739476251608,-809.43,0.0001378,2]
[352990126,1739476251618,-500.0,0.0001378,2]
[352990128,1739476251627,-500.0,0.0001378,2]
[352990130,1739476251637,-1111.53,0.0001378,2]
[352990132,1739476251648,-1303.87,0.0001378,2]
[352990133,1739476251658,-1074.31,0.0001378,2]
[352990135,1739476251668,-500.0,0.0001378,2]
[352990137,1739476251677,-944.51,0.0001378,2]
[352990139,1739476251687,-500.0,0.0001378,2]
[352990141,1739476251698,-1536.7,0.0001378,2]
[352990143,1739476251707,-1110.79,0.0001378,2]
[352990145,1739476251717,-500.0,0.0001378,2]
[352990147,1739476251727,-500.0,0.0001378,2]
[352990149,1739476251736,-529.41,0.0001378,2]
[352990151,1739476251748,-1864.99,0.0001378,2]
[352990153,1739476251758,-500.0,0.0001378,2]
[352990155,1739476251768,-2071.79,0.0001378,2]
[352990156,1739476251779,-617.13,0.0001378,2]
[352990159,1739476251788,-785.19,0.0001378,2]
[352990161,1739476251798,-1862.39,0.0001378,2]
[352990162,1739476251808,-575.95,0.0001378,2]
[352990164,1739476251818,-1208.51,0.0001378,2]
[352990166,1739476251827,-500.0,0.0001378,2]
[352990168,1739476251838,-1154.95,0.0001378,2]
[352990170,1739476251847,-500.0,0.0001378,2]
[352990172,1739476251857,-640.66,0.0001378,2]
[352990174,1739476251867,-1993.24,0.0001378,2]
[352990176,1739476251877,-1450.89,0.0001378,2]
[352990178,1739476251891,-536.96,0.0001378,2]
[352990180,1739476251902,-500.0,0.0001378,2]
[352990182,1739476251912,-983.75,0.0001378,2]
[352990184,1739476251923,-504.88701225,0.0001378,2]
[352990186,1739476251933,-500.0,0.0001378,2]
[352990189,1739476251943,-695.54,0.0001378,2]
[352990190,1739476251953,-500.0,0.0001378,2]
[352990192,1739476251964,-1565.95,0.0001378,2]
[352990195,1739476251974,-1745.62,0.0001378,2]
[352990196,1739476251983,-2551.82,0.0001378,2]
[352990198,1739476251992,-1022.83,0.0001378,2]
[352990200,1739476252002,-1233.25,0.0001378,2]
[352990202,1739476252011,-626.33,0.0001378,2]
[352990204,1739476252021,-1994.97,0.0001378,2]
[352990206,1739476252033,-1311.07,0.0001378,2]
[352990208,1739476252042,-500.0,0.0001378,2]
[352990210,1739476252051,-1367.06,0.0001378,2]
[352990212,1739476252062,-2458.74,0.0001378,2]
[352990214,1739476252071,-1131.67,0.0001378,2]
[352990216,1739476252080,-500.0,0.0001378,2]
[352990217,1739476252089,-1367.9,0.0001378,2]
[352990218,1739476252098,-523.40262966,0.0001378,2]
[352990219,1739476252109,-565.9,0.0001378,2]
[352990220,1739476252117,-1840.22,0.0001378,2]
[352990221,1739476252127,-1795.87,0.0001378,2]
[352990222,1739476252136,-640.36,0.0001378,2]
[352990223,1739476252145,-947.46,0.0001378,2]
[352990224,1739476252154,-150.33445161,0.0001378,2]
[352990225,1739476252163,-500.0,0.0001378,2]
[352990226,1739476252173,-1343.56,0.0001378,2]
[352990227,1739476252181,-1511.16,0.0001378,2]
[352990228,1739476252191,-500.0,0.0001378,2]
[352990229,1739476252201,-2304.71,0.0001378,2]
[352990230,1739476252211,-500.0,0.0001378,2]
[352990231,1739476252220,-915.96,0.0001378,2]
[352990232,1739476252229,-820.43,0.0001378,2]
[352990233,1739476252238,-865.06,0.0001378,2]
[352990234,1739476252248,-541.04,0.0001378,2]
[352990235,1739476252257,-778.94,0.0001378,2]
[352990236,1739476252266,-508.36220336,0.0001378,2]
[352990237,1739476252276,-1803.52,0.0001378,2]
[352990238,1739476252285,-897.33,0.0001378,2]
[352990240,1739476252294,-500.0,0.0001378,2]
[352990241,1739476252303,-2453.46,0.0001378,2]
[352990243,1739476252313,-500.0,0.0001378,2]
[352990245,1739476252322,-2317.82,0.0001378,2]
[352990247,1739476252331,-3085.59,0.0001378,2]
[352990249,1739476252340,-500.0,0.0001378,2]
[352990251,1739476252349,-500.0,0.0001378,2]
[352990253,1739476252358,-1543.42,0.0001378,2]
[352990255,1739476252367,-612.19,0.0001378,2]
[352990257,1739476252377,-500.0,0.0001378,2]
[352990259,1739476252387,-1523.32,0.0001378,2]
[352990261,1739476252396,-500.0,0.0001378,2]
[352990262,1739476252406,-1246.06,0.0001378,2]
[352990264,1739476252415,-500.0,0.0001378,2]
[352990266,1739476252424,-1063.49,0.0001378,2]
[352990268,1739476252434,-509.2340643,0.0001378,2]
[352990270,1739476252444,-500.0,0.0001378,2]
[352990272,1739476252453,-1111.76,0.0001378,2]
[352990274,1739476252463,-1124.51,0.0001378,2]
[352990276,1739476252472,-2135.88,0.0001378,2]
[352990278,1739476252480,-3756.57,0.0001378,2]
[352990280,1739476252489,-2369.46,0.0001378,2]
[352990282,1739476252498,-500.0,0.0001378,2]
[352990284,1739476252508,-1717.33,0.0001378,2]
[352990286,1739476252517,-792.36,0.0001378,2]
[352990288,1739476252526,-1388.02,0.0001378,2]
[352990290,1739476252536,-529.17,0.0001378,2]
[352990292,1739476252545,-2820.04,0.0001378,2]
[352990294,1739476252554,-500.0,0.0001378,2]
[352990296,1739476252564,-751.45,0.0001378,2]
[352990298,1739476252572,-1473.81,0.0001378,2]
[352990300,1739476252581,-500.0,0.0001378,2]
[352990302,1739476252591,-1639.34,0.0001378,2]
[352990304,1739476252600,-500.0,0.0001378,2]
[352990306,1739476252610,-500.0,0.0001378,2]
[352990308,1739476252619,-1084.17,0.0001378,2]
[352990310,1739476252628,-1718.85,0.0001378,2]
[352990312,1739476252637,-500.0,0.0001378,2]
[352990314,1739476252647,-500.0,0.0001378,2]
[352990316,1739476252656,-1146.79,0.0001378,2]
[352990317,1739476252665,-500.0,0.0001378,2]
[352990318,1739476252675,-1057.77,0.0001378,2]
[352990319,1739476252684,-514.91980382,0.0001378,2]
[352990320,1739476252694,-975.74,0.0001378,2]
[352990322,1739476252703,-2143.08,0.0001378,2]
[352990324,1739476252712,-500.0,0.0001378,2]
[352990326,1739476252722,-2287.65,0.0001378,2]
[352990328,1739476252731,-2782.21,0.0001378,2]
[352990329,1739476252740,-804.28,0.0001378,2]
[352990330,1739476252749,-1564.05,0.0001378,2]
[352990331,1739476252759,-721.36,0.0001378,2]
[352990332,1739476252768,-646.25,0.0001378,2]
[352990334,1739476252777,-993.47,0.0001378,2]
[352990336,1739476252787,-500.0,0.0001378,2]
[352990338,1739476252796,-2863.75,0.0001378,2]
[352990339,1739476252807,-1752.21,0.0001378,2]
[352990341,1739476252816,-2286.62,0.0001378,2]
[352990342,1739476252826,-500.0,0.0001378,2]
[352990343,1739476252835,-500.0,0.0001378,2]
[352990344,1739476252845,-1691.32,0.0001378,2]
[352990345,1739476252855,-2400.72,0.0001378,2]
[352990346,1739476252864,-500.0,0.0001378,2]
[352990347,1739476252875,-500.0,0.0001378,2]
[352990348,1739476252888,-500.0,0.0001378,2]
[352990349,1739476252897,-500.0,0.0001378,2]
[352990350,1739476252908,-3231.66,0.0001378,2]
[352990351,1739476252917,-609.81,0.0001378,2]
[352990352,1739476252927,-500.0,0.0001378,2]
[352990353,1739476252937,-500.0,0.0001378,2]
[352990354,1739476252946,-587.03,0.0001378,2]
[352990355,1739476252955,-500.0,0.0001378,2]
[352990356,1739476252966,-1323.62,0.0001378,2]
[352990357,1739476252976,-902.74,0.0001378,2]
[352990358,1739476252985,-500.0,0.0001378,2]
[352990359,1739476252995,-643.25,0.0001378,2]
[352990360,1739476253004,-703.94,0.0001378,2]
[352990361,1739476253014,-500.0,0.0001378,2]
[352990362,1739476253024,-2031.88,0.0001378,2]
[352990363,1739476253033,-500.0,0.0001378,2]
[352990364,1739476253043,-2112.37,0.0001378,2]
[352990365,1739476253053,-1710.06,0.0001378,2]
[352990366,1739476253063,-500.0,0.0001378,2]
[352990367,1739476253072,-1405.28,0.0001378,2]
[352990368,1739476253081,-805.95,0.0001378,2]
[352990369,1739476253091,-2275.01,0.0001378,2]
[352990370,1739476253101,-945.53,0.0001378,2]
[352990371,1739476253110,-1704.8,0.0001378,2]
[352990372,1739476253119,-500.0,0.0001378,2]
[352990373,1739476253128,-500.0,0.0001378,2]
[352990374,1739476253136,-791.6,0.0001378,2]
[352990375,1739476253146,-4819.69,0.0001378,2]
[352990376,1739476253155,-665.99,0.0001378,2]
[352990377,1739476253164,-1361.0,0.0001378,2]
[352990378,1739476253174,-763.78,0.0001378,2]
[352990379,1739476253184,-500.0,0.0001378,2]
[352990380,1739476253193,-500.0,0.0001378,2]
[352990381,1739476253203,-1143.5,0.0001378,2]
[352990382,1739476253213,-500.0,0.0001378,2]
[352990383,1739476253223,-500.0,0.0001378,2]
[352990384,1739476253232,-522.89,0.0001378,2]
[352990385,1739476253242,-500.0,0.0001378,2]
[352990386,1739476253251,-2890.76,0.0001378,2]
[352990387,1739476253261,-500.0,0.0001378,2]
[352990388,1739476253271,-1483.74,0.0001378,2]
[352990389,1739476253282,-500.0,0.0001378,2]
[352990390,1739476253292,-516.14,0.0001378,2]
[352990391,1739476253301,-517.93,0.0001378,2]
[352990392,1739476253312,-4535.24,0.0001378,2]
[352990393,1739476253321,-809.64,0.0001378,2]
[352990394,1739476253331,-500.0,0.0001378,2]
[352990395,1739476253341,-1165.72,0.0001378,2]
[352990396,1739476253351,-4512.81,0.0001378,2]
[352990397,1739476253361,-964.5,0.0001378,2]
[352990398,1739476253373,-2758.98,0.0001378,2]
[352990399,1739476253383,-819.2,0.0001378,2]
[352990400,1739476253394,-3586.87,0.0001378,2]
[352990401,1739476253405,-1943.0,0.0001378,2]
[352990402,1739476253416,-322.76721628,0.0001378,2]
[352990403,1739476253426,-574.39,0.0001378,2]
[352990404,1739476253436,-500.0,0.0001378,2]
[352990405,1739476253446,-2498.72,0.0001378,2]
[352990406,1739476253457,-2554.15,0.0001378,2]
[352990407,1739476253467,-956.46,0.0001378,2]
[352990408,1739476253477,-949.92,0.0001378,2]
[352990409,1739476253487,-3876.64,0.0001378,2]
[352990410,1739476253497,-500.0,0.0001378,2]
[352990411,1739476253507,-1355.2,0.0001378,2]
[352990412,1739476253518,-2614.33,0.0001378,2]
[352990413,1739476253528,-5205.11,0.0001378,2]
[352990414,1739476253538,-500.0,0.0001378,2]
[352990415,1739476253549,-513.1,0.0001378,2]
[352990416,1739476253561,-500.0,0.0001378,2]
[352990417,1739476253571,-1937.98,0.0001378,2]
[352990418,1739476253582,-5696.3,0.0001378,2]
[352990419,1739476253592,-2607.59,0.0001378,2]
[352990420,1739476253602,-500.0,0.0001378,2]
[352990421,1739476253611,-682.97,0.0001378,2]
[352990422,1739476253622,-500.0,0.0001378,2]
[352990423,1739476253631,-2955.24,0.0001378,2]
[352990424,1739476253641,-500.0,0.0001378,2]
[352990425,1739476253652,-1493.44,0.0001378,2]
[352990426,1739476253662,-1021.76,0.0001378,2]
[352990427,1739476253671,-3555.44,0.0001378,2]
[352990428,1739476253681,-7409.22,0.0001378,2]
[352990429,1739476253692,-500.0,0.0001378,2]
[352990430,1739476253702,-2623.56,0.0001378,2]
[352990431,1739476253712,-624.33,0.0001378,2]
[352990432,1739476253724,-500.0,0.0001378,2]
[352990433,1739476253734,-500.0,0.0001378,2]
[352990434,1739476253746,-3691.41,0.0001378,2]
[352990435,1739476253756,-500.0,0.0001378,2]
[352990436,1739476253766,-3351.75,0.0001378,2]
[352990437,1739476253776,-2679.24,0.0001378,2]
[352990438,1739476253786,-3476.53,0.0001378,2]
[352990439,1739476253796,-1088.44,0.0001378,2]
[352990440,1739476253807,-2263.43,0.0001378,2]